bitfinex/quotes_BTCUSD_20241205
["timestamp","ask_amount","ask_price","bid_price","bid_amount"]
[1733357703179,0.12995274,98780.0,98761.0,0.51423578]
[1733357703393,0.023,98778.0,98761.0,0.01983791]
[1733357703612,0.023,98776.0,98759.0,0.0417537]
[1733357703807,0.023,98772.0,98758.0,0.002]
[1733357704021,0.023,98770.0,98746.0,0.18062679]
[1733357704232,0.10695313,98769.0,98747.0,0.18062679]
[1733357704441,0.10695313,98769.0,98761.0,0.002]
[1733357704442,0.023,98768.0,98761.0,0.002]
[1733357704655,0.023,98766.0,98756.0,0.0202891]
[1733357704887,0.023,98764.0,98756.0,0.0202891]
[1733357705117,0.023,98762.0,98756.0,0.0202891]
[1733357705331,0.023,98760.0,98756.0,0.0202891]
[1733357705567,0.023,98758.0,98746.0,0.22118882]
[1733357705778,0.023,98756.0,98750.0,0.13557758]
[1733357705988,0.023,98754.0,98750.0,0.13557758]
[1733357706259,0.023,98752.0,98751.0,0.13557758]
[1733357706466,0.023,98752.0,98747.0,0.18062679]
[1733357706467,0.023,98760.0,98749.0,0.18062679]
[1733357706682,0.023,98758.0,98756.0,0.009]
[1733357706898,0.02524055,98757.0,98754.0,0.09037363]
[1733357707113,0.023,98756.0,98753.0,0.09037363]
[1733357707339,0.023,98754.0,98752.0,0.09037363]
[1733357707551,0.02524056,98754.0,98752.0,0.09037363]
[1733357707767,0.00224056,98753.0,98752.0,0.09037363]
[1733357707978,0.023,98752.0,98751.0,0.09037363]
[1733357708195,0.023,98752.0,98750.0,0.005]
[1733357708196,0.1299533,98752.0,98750.0,0.005]
[1733357708409,0.12995334,98751.0,98750.0,0.005]
[1733357708615,0.023,98750.0,98747.0,0.09037363]
[1733357708832,0.023,98750.0,98745.0,0.09037363]
[1733357708833,0.023,98748.0,98745.0,0.09037363]
[1733357709048,0.00224076,98747.0,98745.0,0.09037363]
[1733357709291,0.00224076,98747.0,98744.0,0.00017428]
[1733357709292,0.023,98746.0,98744.0,0.00017428]
[1733357709482,0.02524083,98745.0,98744.0,0.00017428]
[1733357710363,0.12995342,98745.0,98744.0,0.00017428]
[1733357710779,0.12995342,98745.0,98744.0,0.00817428]
[1733357710993,0.12995342,98745.0,98744.0,0.00990548]
[1733357711443,0.12995342,98745.0,98744.0,0.26610548]
[1733357711877,0.12995342,98745.0,98744.0,0.26310548]
[1733357712085,0.12995342,98745.0,98744.0,0.25510548]
[1733357712301,0.12995342,98745.0,98744.0,0.25610548]
[1733357712554,0.02000786,98783.0,98744.0,0.25610548]
[1733357712555,0.023,98756.0,98744.0,0.26310548]
[1733357712776,0.023,98754.0,98744.0,0.26210548]
[1733357712993,0.023,98752.0,98744.0,0.25610548]
[1733357713246,0.023,98750.0,98744.0,0.25610548]
[1733357713520,0.023,98748.0,98744.0,0.26310548]
[1733357713760,0.1,98757.0,98744.0,0.26310548]
[1733357713761,0.023,98746.0,98744.0,0.25610548]
[1733357713953,0.20865341,98745.0,98744.0,0.25610548]
[1733357714182,0.20865341,98745.0,98724.0,0.1805726]
[1733357714183,0.20865341,98745.0,98725.0,0.19756664]
[1733357714414,0.023,98744.0,98725.0,0.10232354]
[1733357714656,0.10695366,98743.0,98725.0,0.10232354]
[1733357714868,0.023,98740.0,98725.0,0.0017324]
[1733357715103,0.0455,98741.0,98725.0,0.0017324]
[1733357715104,0.023,98738.0,98725.0,0.0017324]
[1733357715335,0.0455,98741.0,98725.0,0.0017324]
[1733357715336,0.023,98736.0,98725.0,0.0017324]
[1733357715577,0.023,98734.0,98725.0,0.0017324]
[1733357715814,0.023,98732.0,98725.0,0.0017324]
[1733357716054,0.023,98730.0,98725.0,0.0037324]
[1733357716382,0.023,98728.0,98725.0,0.0127324]
[1733357716542,0.10471259,98732.0,98725.0,0.0017324]
[1733357716543,0.023,98726.0,98725.0,0.0017324]
[1733357716795,0.023,98726.0,98725.0,0.0057324]
[1733357717064,0.023,98730.0,98725.0,0.0147324]
[1733357717283,0.023,98728.0,98725.0,0.2588324]
[1733357717498,0.023,98726.0,98725.0,0.2588324]
[1733357717726,0.02524116,98726.0,98725.0,0.2588324]
[1733357717984,0.023,98730.0,98725.0,0.2548324]
[1733357718226,0.00224116,98729.0,98725.0,0.2548324]
[1733357718455,0.00224116,98729.0,98725.0,0.2578324]
[1733357718944,0.00224116,98729.0,98725.0,0.2638324]
[1733357719200,0.00224116,98729.0,98725.0,0.2558324]
[1733357719465,0.00224116,98729.0,98725.0,0.2648324]
[1733357719684,0.00224116,98729.0,98725.0,0.2548324]
[1733357719919,0.00224116,98729.0,98725.0,0.2568324]
[1733357720188,0.00224116,98729.0,98725.0,0.2658324]
[1733357722625,0.00224116,98728.0,98725.0,0.2658324]
[1733357722880,0.10471259,98740.0,98726.0,0.33362237]
[1733357723107,0.10471259,98740.0,98725.0,0.2658324]
[1733357723108,0.10647747,98740.0,98725.0,0.2658324]
[1733357723565,0.10647747,98740.0,98725.0,0.2568324]
[1733357723821,0.10647747,98740.0,98725.0,0.2658324]
[1733357724471,0.1,98733.0,98732.0,0.09041775]
[1733357724731,0.55258,98726.0,98725.0,0.2638324]
[1733357724965,0.73249259,98726.0,98725.0,0.2668324]
[1733357725242,0.42991259,98726.0,98725.0,0.2638324]
[1733357725479,0.42991259,98726.0,98725.0,0.2548324]
[1733357725964,0.42991259,98726.0,98725.0,0.2588324]
[1733357726198,0.49478357,98726.0,98725.0,0.2548324]
[1733357726683,0.52479403,98726.0,98725.0,0.2548324]
[1733357726916,0.49478357,98726.0,98725.0,0.2558324]
[1733357727175,0.49478357,98726.0,98725.0,0.2548324]
[1733357727408,0.49678357,98726.0,98725.0,0.2548324]
[1733357727636,0.62677234,98726.0,98725.0,0.2048324]
[1733357728326,0.62477234,98726.0,98725.0,0.2048324]
[1733357728590,0.62877234,98726.0,98725.0,0.2048324]
[1733357729027,0.3269,98720.0,98719.0,0.001731]
[1733357729263,0.45038357,98720.0,98719.0,0.001731]
[1733357729460,0.55038357,98720.0,98719.0,0.001731]
[1733357730324,0.55638357,98720.0,98719.0,0.001731]
[1733357731931,0.74020559,98720.0,98719.0,0.001731]
[1733357732142,0.75890614,98720.0,98719.0,0.001731]
[1733357733449,0.75890614,98720.0,98705.0,0.00058925]
[1733357733450,0.352621,98706.0,98705.0,0.00058925]
[1733357733708,0.77853359,98706.0,98705.0,0.00058925]
[1733357734162,0.79722917,98706.0,98705.0,0.00058925]
[1733357734383,0.33061259,98706.0,98705.0,0.00058925]
[1733357734829,0.33061259,98706.0,98705.0,0.20607069]
[1733357735279,0.33061259,98706.0,98705.0,0.20707069]
[1733357735493,0.33061259,98706.0,98705.0,0.20607069]
[1733357736184,0.33661259,98706.0,98705.0,0.20707069]
[1733357736423,0.33661259,98706.0,98705.0,0.20607069]
[1733357736639,0.33561259,98706.0,98705.0,0.20607069]
[1733357736893,0.33961259,98706.0,98705.0,0.20607069]
[1733357737112,0.64223359,98706.0,98705.0,0.20607069]
[1733357737789,0.6609247,98706.0,98705.0,0.20607069]
[1733357738000,0.64623359,98706.0,98705.0,0.20607069]
[1733357738670,0.6649272,98706.0,98705.0,0.20607069]
[1733357738886,0.84113736,98706.0,98705.0,0.20607069]
[1733357740212,0.84113736,98706.0,98687.0,0.0017312]
[1733357740213,0.633158,98688.0,98687.0,0.0017312]
[1733357740423,0.73787059,98688.0,98687.0,0.0017312]
[1733357740651,0.43521259,98688.0,98687.0,0.0017312]
[1733357740852,0.6565642,98688.0,98687.0,0.0017312]
[1733357741507,0.2824062,98688.0,98687.0,0.0027312]
[1733357741728,0.40535365,98688.0,98687.0,0.0027312]
[1733357741970,0.40535365,98688.0,98687.0,0.0037312]
[1733357741971,0.41435365,98688.0,98687.0,0.0037312]
[1733357742194,0.42335365,98688.0,98687.0,0.0047312]
[1733357742409,0.30535365,98688.0,98687.0,0.0017312]
[1733357742643,0.40535365,98688.0,98687.0,0.0027312]
[1733357742861,0.42235365,98688.0,98687.0,0.0037312]
[1733357743087,0.43204324,98688.0,98687.0,0.0027312]
[1733357743299,0.43203934,98688.0,98687.0,0.0027312]
[1733357743939,0.42403934,98688.0,98687.0,0.0017312]
[1733357744386,0.42903934,98688.0,98687.0,0.0027312]
[1733357744633,0.43503934,98688.0,98687.0,0.0037312]
[1733357744862,0.41503934,98688.0,98687.0,0.0017312]
[1733357745091,0.42003934,98688.0,98687.0,0.0017312]
[1733357745535,0.3794083,98688.0,98687.0,0.0017312]
[1733357745755,0.26071259,98688.0,98687.0,0.0017312]
[1733357745971,0.25971259,98688.0,98687.0,0.0017312]
[1733357746194,0.26571259,98688.0,98687.0,0.0017312]
[1733357746617,0.47061259,98688.0,98687.0,0.0017312]
[1733357747159,0.46561259,98688.0,98687.0,0.0017312]
[1733357747619,0.46461259,98688.0,98687.0,0.0017312]
[1733357747882,0.46861259,98688.0,98687.0,0.0017312]
[1733357748147,0.45961259,98688.0,98687.0,0.0017312]
[1733357748410,0.46161259,98688.0,98687.0,0.0017312]
[1733357748862,0.45961259,98688.0,98687.0,0.0017312]
[1733357749095,0.46161259,98688.0,98687.0,0.0017312]
[1733357750733,0.31161259,98688.0,98687.0,0.0017312]
[1733357751521,0.30961259,98688.0,98687.0,0.0017312]
[1733357751796,0.31161259,98688.0,98687.0,0.0017312]
[1733357751992,0.31161259,98688.0,98687.0,0.0027312]
[1733357752310,0.30961259,98688.0,98687.0,0.0027312]
[1733357752496,0.33035686,98688.0,98687.0,0.0017312]
[1733357752752,0.31161259,98688.0,98687.0,0.0017312]
[1733357753448,0.53302978,98688.0,98687.0,0.0017312]
[1733357753705,0.53102978,98688.0,98687.0,0.0017312]
[1733357753972,0.8908357,98688.0,98687.0,0.0017312]
[1733357754220,0.8928357,98688.0,98687.0,0.0017312]
[1733357754712,0.8908357,98688.0,98687.0,0.0017312]
[1733357754978,0.8130357,98688.0,98687.0,0.0017312]
[1733357755467,0.3583777,98688.0,98687.0,0.0017312]
[1733357755738,0.36642984,98688.0,98687.0,0.0027312]
[1733357755980,0.37542984,98688.0,98687.0,0.0037312]
[1733357756484,0.57808784,98688.0,98687.0,0.0037312]
[1733357756997,0.57008784,98688.0,98687.0,0.0027312]
[1733357757245,0.56108784,98688.0,98687.0,0.0017312]
[1733357758018,0.56608784,98688.0,98687.0,0.0017312]
[1733357758771,0.51827059,98688.0,98687.0,0.0017312]
[1733357759027,0.64452888,98688.0,98687.0,0.0017312]
[1733357759531,0.79452888,98688.0,98687.0,0.0017312]
[1733357760260,0.82352888,98688.0,98687.0,0.0017312]
[1733357761214,0.82527273,98688.0,98687.0,0.0017312]
[1733357761479,0.54521473,98688.0,98687.0,0.0017312]
[1733357761716,0.74787273,98688.0,98687.0,0.0017312]
[1733357762217,0.52221473,98688.0,98687.0,0.0017312]
[1733357762813,0.37221473,98688.0,98687.0,0.0017312]
[1733357763103,0.34214018,98688.0,98687.0,0.1131942]
[1733357763315,0.34214018,98688.0,98687.0,0.0017312]
[1733357763604,0.36514018,98688.0,98687.0,0.0017312]
[1733357763803,0.23742759,98688.0,98687.0,0.0017312]
[1733357764035,0.206631,98688.0,98687.0,0.0017312]
[1733357764270,0.211631,98688.0,98687.0,0.0017312]
[1733357765088,0.206631,98688.0,98687.0,0.0017312]
[1733357765354,0.31334359,98688.0,98687.0,0.0017312]
[1733357765812,0.33434359,98688.0,98687.0,0.0017312]
[1733357766745,0.33434359,98688.0,98687.0,0.0027312]
[1733357767008,0.33434359,98688.0,98687.0,0.0017312]
[1733357767221,0.33434359,98688.0,98687.0,0.0027312]
[1733357768070,0.33434359,98688.0,98687.0,0.0037312]
[1733357768071,0.33534359,98688.0,98687.0,0.0037312]
[1733357768320,0.33534359,98688.0,98687.0,0.0017312]
[1733357768587,0.33434359,98688.0,98687.0,0.0037312]
[1733357768826,0.33534359,98688.0,98687.0,0.0037312]
[1733357769594,0.33534359,98688.0,98687.0,0.0017312]
[1733357770037,0.33534359,98688.0,98687.0,0.0037312]
[1733357770266,0.33534359,98688.0,98687.0,0.0017312]
[1733357770517,0.33534359,98688.0,98687.0,0.0037312]
[1733357770749,0.33434359,98688.0,98687.0,0.0037312]
[1733357771013,0.33434359,98688.0,98678.0,0.09237179]
[1733357771014,0.023,98687.0,98678.0,0.09237179]
[1733357771262,0.023,98685.0,98674.0,0.101343]
[1733357771501,0.023,98683.0,98670.0,0.0017318]
[1733357771771,0.30738759,98680.0,98670.0,0.0017318]
[1733357771996,0.48039159,98678.0,98670.0,0.0017318]
[1733357772254,0.529351,98678.0,98670.0,0.0017318]
[1733357772530,0.49922362,98678.0,98670.0,0.0017318]
[1733357773968,0.50322362,98678.0,98670.0,0.0017318]
[1733357774235,0.49922362,98678.0,98670.0,0.0017318]
[1733357774497,0.48439159,98678.0,98670.0,0.0017318]
[1733357774787,0.82522294,98678.0,98670.0,0.0017318]
[1733357775009,0.85132729,98678.0,98670.0,0.0017318]
[1733357775495,0.89704493,98678.0,98670.0,0.0017318]
[1733357775916,0.88904493,98678.0,98670.0,0.0017318]
[1733357776169,0.89804493,98678.0,98677.0,0.0027294]
[1733357776651,0.91786297,98678.0,98677.0,0.0027294]
[1733357776883,0.82084895,98678.0,98677.0,0.0027294]
[1733357777104,0.82077402,98678.0,98677.0,0.0027294]
[1733357777822,0.75923834,98678.0,98677.0,0.0027294]
[1733357778065,0.7381788,98678.0,98677.0,0.0037294]
[1733357778576,0.6924788,98678.0,98677.0,0.0037294]
[1733357778840,0.12271259,98678.0,98677.0,0.0037294]
[1733357779066,0.12447747,98678.0,98677.0,0.0037294]
[1733357779535,0.11547747,98678.0,98677.0,0.0027294]
[1733357779996,0.11547747,98678.0,98677.0,0.0017294]
[1733357779997,0.27947747,98678.0,98677.0,0.0017294]
[1733357780235,0.28371259,98678.0,98677.0,0.0027294]
[1733357780456,0.28371259,98678.0,98677.0,0.0017294]
[1733357780932,0.29871259,98678.0,98677.0,0.0037294]
[1733357781446,0.29871259,98678.0,98677.0,0.0027294]
[1733357781447,0.29171259,98678.0,98677.0,0.0027294]
[1733357781934,0.29071259,98678.0,98677.0,0.0027294]
[1733357782169,0.29071259,98678.0,98677.0,0.0017294]
[1733357782170,0.28271259,98678.0,98677.0,0.0017294]
[1733357782394,0.28271259,98678.0,98677.0,0.0027294]
[1733357782395,0.28471259,98678.0,98677.0,0.0027294]
[1733357782627,0.48898465,98678.0,98677.0,0.0017294]
[1733357782908,0.59405425,98678.0,98677.0,0.0017294]
[1733357783161,0.62280833,98678.0,98677.0,0.0017294]
[1733357783390,0.52353627,98678.0,98677.0,0.0017294]
[1733357783933,0.56633627,98678.0,98677.0,0.0017294]
[1733357784161,0.57233627,98678.0,98677.0,0.0027294]
[1733357784415,0.57906747,98678.0,98677.0,0.0027294]
[1733357784661,0.68189893,98678.0,98677.0,0.0027294]
[1733357784899,0.68189893,98678.0,98670.0,0.0017318]
[1733357784900,0.532593,98671.0,98670.0,0.0017318]
[1733357785146,0.532593,98671.0,98664.0,0.0017318]
[1733357785147,0.1,98665.0,98664.0,0.0017318]
[1733357785404,0.52075489,98665.0,98664.0,0.0017318]
[1733357785639,0.51899001,98665.0,98664.0,0.0017318]
[1733357786341,0.51899001,98665.0,98664.0,0.00190619]
[1733357787047,0.52799001,98665.0,98664.0,0.00290619]
[1733357787991,0.53699001,98665.0,98664.0,0.00290619]
[1733357793418,0.53699001,98665.0,98664.0,1.9e-07]
[1733357793876,0.53690973,98665.0,98664.0,1.9e-07]
[1733357794100,0.528518,98659.0,98621.0,0.0002]
[1733357794340,0.75475137,98659.0,98621.0,0.0002]
[1733357795027,0.75475137,98659.0,98658.0,2e-07]
[1733357795276,0.75475137,98659.0,98621.0,0.0002]
[1733357795277,0.302745,98646.0,98621.0,0.0002]
[1733357795519,0.70594691,98646.0,98621.0,0.0002]
[1733357796696,0.71494691,98646.0,98645.0,0.001866]
[1733357796916,0.81777837,98646.0,98645.0,0.001866]
[1733357797356,0.81300751,98646.0,98645.0,0.001866]
[1733357797581,0.80131819,98646.0,98645.0,0.001866]
[1733357798027,0.69848673,98646.0,98645.0,0.001866]
[1733357798315,0.71717302,98646.0,98645.0,0.001866]
[1733357798982,0.75755121,98646.0,98645.0,0.001866]
[1733357799203,0.75755121,98646.0,98621.0,0.0002]
[1733357799204,0.29798214,98642.0,98621.0,0.0002]
[1733357799426,0.57138102,98642.0,98621.0,0.0002]
[1733357799882,0.59623987,98642.0,98621.0,0.0002]
[1733357801297,0.60523987,98642.0,98621.0,0.0002]
[1733357801969,0.61423987,98642.0,98621.0,0.0002]
[1733357802471,0.58938102,98642.0,98621.0,0.0002]
[1733357802945,0.58938102,98642.0,98627.0,0.00477086]
[1733357802946,0.14139888,98642.0,98627.0,0.00477086]
[1733357803205,0.14139888,98642.0,98641.0,0.0827]
[1733357803709,0.32546559,98642.0,98641.0,0.0827]
[1733357803939,0.31646559,98642.0,98641.0,0.0002]
[1733357804164,0.32146559,98642.0,98641.0,0.0002]
[1733357804390,0.47146559,98642.0,98641.0,0.0002]
[1733357804858,0.58042121,98642.0,98641.0,0.0002]
[1733357805102,0.65242422,98642.0,98641.0,0.0002]
[1733357805330,0.65242422,98642.0,98641.0,1e-06]
[1733357805584,0.65942422,98642.0,98641.0,1e-06]
[1733357805816,0.352825,98607.0,98606.0,0.0008663]
[1733357806092,0.57149321,98607.0,98606.0,0.0008663]
[1733357806330,0.57149321,98607.0,98606.0,0.00104076]
[1733357808409,0.58249321,98607.0,98606.0,0.00104076]
[1733357809124,0.48726407,98607.0,98606.0,0.00104076]
[1733357809346,0.58249321,98607.0,98606.0,0.00104076]
[1733357809589,0.62341005,98607.0,98606.0,0.00104076]
[1733357810509,0.70180647,98607.0,98606.0,0.00104076]
[1733357810739,0.62341005,98607.0,98606.0,0.00104076]
[1733357812590,0.37818091,98607.0,98606.0,0.00104076]
[1733357812824,0.11571259,98607.0,98606.0,0.00104076]
[1733357813060,0.11747747,98607.0,98606.0,0.00104076]
[1733357813298,0.11571259,98607.0,98606.0,0.00581162]
[1733357813527,0.11071259,98607.0,98606.0,0.00581162]
[1733357813922,0.10471259,98607.0,98606.0,0.00581162]
[1733357814121,0.10971259,98607.0,98606.0,0.00581162]
[1733357814479,0.10471259,98607.0,98606.0,0.00581162]
[1733357815384,0.11071259,98607.0,98606.0,0.00581162]
[1733357815786,0.10471259,98607.0,98606.0,0.00104076]
[1733357816216,0.10647747,98607.0,98606.0,0.00104076]
[1733357816436,0.10647747,98607.0,98606.0,0.00304076]
[1733357817773,0.11047747,98607.0,98606.0,0.00304076]
[1733357818273,0.11047747,98607.0,98606.0,0.00104076]
[1733357818702,0.11447747,98607.0,98606.0,0.00104076]
[1733357818908,0.11047747,98607.0,98606.0,0.00104076]
[1733357819139,0.10647747,98607.0,98606.0,0.00104076]
[1733357819348,0.11147747,98607.0,98606.0,0.00104076]
[1733357819567,0.10947747,98607.0,98606.0,0.00104076]
[1733357819782,0.10647747,98607.0,98606.0,0.00104076]
[1733357820006,0.10947747,98607.0,98606.0,0.00104076]
[1733357820671,0.10647747,98607.0,98606.0,0.00104076]
[1733357821126,0.10671259,98607.0,98606.0,0.00104076]
[1733357821668,0.10971259,98607.0,98606.0,0.00104076]
[1733357821764,0.005,98607.0,98606.0,0.00104076]
[1733357821993,0.005,98607.0,98606.0,0.10104076]
[1733357822213,0.005,98607.0,98606.0,0.18851162]
[1733357822214,0.006,98607.0,98606.0,0.18851162]
[1733357822442,0.0017322,98620.0,98613.0,0.00477086]
[1733357822659,0.10471259,98619.0,98614.0,0.111546]
[1733357822915,0.00176488,98618.0,98614.0,0.111546]
[1733357823149,0.00176488,98618.0,98613.0,0.00477086]
[1733357823150,0.10471259,98617.0,98613.0,0.00477086]
[1733357823381,0.10471259,98617.0,98610.0,0.111549]
[1733357823382,0.00176488,98616.0,98610.0,0.11631986]
[1733357823611,0.10471259,98615.0,98613.0,0.00477086]
[1733357823834,0.00176488,98614.0,98613.0,0.00477086]
[1733357824061,0.10647747,98614.0,98613.0,0.00477086]
[1733357825249,0.10647747,98614.0,98606.0,0.18374076]
[1733357825250,0.10647747,98614.0,98610.0,0.00477086]
[1733357825490,0.10471259,98613.0,98612.0,0.00477086]
[1733357826168,0.10471259,98613.0,98606.0,0.08374076]
[1733357826169,0.10471259,98613.0,98606.0,0.00104076]
[1733357826395,0.00349708,98620.0,98606.0,0.00104076]
[1733357826396,0.10647747,98612.0,98606.0,0.00104076]
[1733357827357,0.10461259,98608.0,98606.0,0.00104076]
[1733357827584,0.00176488,98607.0,98606.0,0.00104076]
[1733357827828,0.25471259,98607.0,98606.0,0.00104076]
[1733357828991,0.25871259,98607.0,98606.0,0.00104076]
[1733357829485,0.25471259,98607.0,98606.0,0.00104076]
[1733357829714,0.26071259,98607.0,98606.0,0.00104076]
[1733357831150,0.26071259,98607.0,98606.0,0.00581162]
[1733357831151,0.11071259,98607.0,98606.0,0.00581162]
[1733357831610,0.10771259,98607.0,98606.0,0.00581162]
[1733357831847,0.005,98607.0,98606.0,0.10581162]
[1733357832068,0.003,98607.0,98606.0,0.10581162]
[1733357832286,0.0017322,98620.0,98615.0,0.101404]
[1733357832511,0.0017322,98620.0,98619.0,0.00477086]
[1733357833200,0.10644479,98620.0,98619.0,0.00477086]
[1733357834262,0.10644479,98620.0,98619.0,0.00577086]
[1733357835605,0.0017322,98620.0,98619.0,0.10577086]
[1733357835814,0.0017322,98620.0,98619.0,0.10877086]
[1733357836453,0.0017322,98620.0,98613.0,0.04059215]
[1733357836662,0.0017322,98620.0,98613.0,0.04238686]
[1733357836867,0.0017322,98620.0,98617.0,0.101402]
[1733357837124,0.0017322,98620.0,98617.0,0.202804]
[1733357838642,0.0017322,98620.0,98617.0,0.205804]
[1733357839510,0.0017322,98620.0,98617.0,0.206804]
[1733357841722,0.0017322,98620.0,98619.0,0.2014]
[1733357841931,0.0017322,98620.0,98619.0,0.20319456]
[1733357842147,0.0017322,98620.0,98619.0,0.10319456]
[1733357842390,0.0017322,98620.0,98619.0,0.1014]
[1733357843056,0.0027322,98620.0,98619.0,0.1014]
[1733357843497,0.0017322,98620.0,98619.0,0.1014]
[1733357843772,0.0027322,98620.0,98619.0,0.1034]
[1733357844224,0.0017322,98620.0,98619.0,0.1014]
[1733357844449,0.0027322,98620.0,98619.0,0.1064]
[1733357844676,0.0017322,98620.0,98618.0,0.1316]
[1733357844937,0.0027322,98620.0,98619.0,0.1064]
[1733357845443,0.0027322,98620.0,98619.0,0.005]
[1733357845444,0.0257322,98620.0,98619.0,0.005]
[1733357845684,0.0257322,98620.0,98619.0,0.003]
[1733357846182,0.0257322,98620.0,98618.0,0.1084]
[1733357846183,0.0027322,98620.0,98618.0,0.1084]
[1733357846423,0.0027322,98620.0,98619.0,0.003]
[1733357846643,0.0027322,98620.0,98619.0,0.00479474]
[1733357846898,0.0027322,98620.0,98619.0,0.0463]
[1733357847130,0.0027322,98620.0,98619.0,0.04809461]
[1733357847356,0.0017322,98620.0,98619.0,0.38359461]
[1733357847662,0.0027322,98620.0,98619.0,0.90232705]
[1733357847867,0.00176488,98659.0,98639.0,0.101378]
[1733357847868,0.023,98658.0,98639.0,0.101378]
[1733357848124,0.023,98656.0,98639.0,0.101378]
[1733357848340,0.023,98654.0,98639.0,0.101378]
[1733357848565,0.023,98652.0,98639.0,0.101378]
[1733357848789,0.10647747,98651.0,98639.0,0.101378]
[1733357849017,0.023,98650.0,98630.0,0.202776]
[1733357849250,0.20672,98658.0,98623.0,0.13583736]
[1733357849251,0.023,98648.0,98636.0,0.00017446]
[1733357849494,0.004,98658.0,98637.0,0.101381]
[1733357849495,0.023,98646.0,98637.0,0.101381]
[1733357849712,0.023,98644.0,98637.0,0.101381]
[1733357849954,0.004,98658.0,98636.0,0.00017446]
[1733357849955,0.023,98642.0,98636.0,0.00017446]
[1733357850211,0.023,98640.0,98636.0,0.00017446]
[1733357850436,0.023,98638.0,98636.0,0.00017446]
[1733357850657,0.00176488,98637.0,98636.0,0.00017446]
[1733357850877,0.02476488,98637.0,98636.0,0.00017446]
[1733357852217,0.12947747,98637.0,98636.0,0.00017446]
[1733357852439,0.13047747,98637.0,98636.0,0.00717446]
[1733357852664,0.13047747,98637.0,98636.0,0.00917446]
[1733357853738,0.024,98637.0,98636.0,0.00917446]
[1733357853968,0.024,98637.0,98636.0,0.08797446]
[1733357853969,0.001,98637.0,98636.0,0.08797446]
[1733357854207,0.001,98637.0,98636.0,0.13787446]
[1733357854429,0.001,98637.0,98636.0,0.27361506]
[1733357854672,0.001,98637.0,98636.0,0.13787446]
[1733357854880,0.01874785,98666.0,98662.0,0.20271]
[1733357855095,0.01874785,98666.0,98664.0,0.147654]
[1733357856210,0.023,98665.0,98664.0,0.147654]
[1733357856640,0.023,98665.0,98664.0,0.151654]
[1733357857098,0.023,98665.0,98664.0,0.147654]
[1733357857334,0.023,98665.0,98664.0,0.101354]
[1733357857755,0.023,98665.0,98664.0,0.105354]
[1733357857983,0.023,98665.0,98664.0,0.004]
[1733357858198,0.023,98665.0,98664.0,0.013]
[1733357858409,0.023,98665.0,98664.0,0.004]
[1733357858878,0.024,98665.0,98664.0,0.013]
[1733357859099,0.50968347,98665.0,98664.0,0.013]
[1733357859390,0.55791859,98665.0,98664.0,0.013]
[1733357860009,0.57662238,98665.0,98664.0,0.009]
[1733357860227,0.55791859,98665.0,98664.0,0.009]
[1733357860446,0.57862811,98665.0,98664.0,0.009]
[1733357860944,0.57862811,98665.0,98637.0,0.10138]
[1733357860945,0.173,98659.0,98638.0,0.10138]
[1733357861181,0.10471259,98657.0,98638.0,0.10138]
[1733357861408,0.10471259,98657.0,98637.0,0.10138]
[1733357861409,0.023,98655.0,98646.0,0.101371]
[1733357861625,0.023,98653.0,98646.0,0.101371]
[1733357861843,0.023,98651.0,98640.0,0.101378]
[1733357862068,0.023,98649.0,98636.0,0.00017446]
[1733357862291,0.023,98647.0,98636.0,0.00017446]
[1733357862542,0.023,98645.0,98636.0,0.00017446]
[1733357862771,0.202753,98642.0,98636.0,0.00017446]
[1733357862991,0.023,98639.0,98636.0,0.00017446]
[1733357863229,0.10647747,98638.0,98636.0,0.00017446]
[1733357863448,0.023,98637.0,98636.0,0.00017446]
[1733357863667,0.12947747,98637.0,98636.0,0.00017446]
[1733357864093,0.12947747,98637.0,98636.0,0.00117446]
[1733357864306,0.12947747,98637.0,98636.0,0.00317446]
[1733357864514,0.12947747,98637.0,98636.0,0.00117446]
[1733357864933,0.12947747,98637.0,98636.0,0.00917446]
[1733357864934,0.00276488,98637.0,98636.0,0.00917446]
[1733357865150,0.02049387,98663.0,98657.0,0.101361]
[1733357865362,0.0755,98679.0,98639.0,0.0017942]
[1733357865363,0.10647747,98662.0,98639.0,0.0017942]
[1733357865571,0.10647747,98662.0,98651.0,0.101366]
[1733357866016,0.10647747,98662.0,98645.0,0.101372]
[1733357866231,0.10647747,98662.0,98638.0,0.0483]
[1733357866232,0.202714,98661.0,98638.0,0.0483]
[1733357866450,0.10471259,98656.0,98636.0,0.00317446]
[1733357866665,0.10471259,98656.0,98636.0,0.00017446]
[1733357866666,0.20449088,98655.0,98636.0,0.00017446]
[1733357866881,0.20274,98649.0,98636.0,0.00017446]
[1733357867179,0.10647747,98648.0,98636.0,0.00117446]
[1733357867380,0.202743,98647.0,98636.0,0.00017446]
[1733357867598,0.0755,98654.0,98636.0,0.00017446]
[1733357867599,0.10647747,98646.0,98636.0,0.00017446]
[1733357868462,0.10647747,98646.0,98641.0,0.101377]
[1733357868890,0.10647747,98646.0,98637.0,0.101381]
[1733357869103,0.10647747,98646.0,98638.0,0.10138]
[1733357869104,0.10747747,98646.0,98638.0,0.10138]
[1733357869322,0.10747747,98646.0,98639.0,0.101379]
[1733357869546,0.10571259,98646.0,98644.0,0.101374]
[1733357869759,0.001,98646.0,98644.0,0.101374]
[1733357870435,0.20446288,98669.0,98649.0,0.101369]
[1733357870648,0.15,98665.0,98649.0,0.101369]
[1733357870856,0.10647747,98664.0,98649.0,0.101369]
[1733357871092,0.15,98663.0,98649.0,0.202738]
[1733357871306,0.10647747,98662.0,98649.0,0.101369]
[1733357872166,0.10647747,98662.0,98650.0,0.101368]
[1733357872593,0.10647747,98662.0,98653.0,0.101364]
[1733357873035,0.10647747,98662.0,98640.0,0.0761]
[1733357873036,0.10847747,98662.0,98659.0,0.101358]
[1733357873250,0.10847747,98662.0,98659.0,0.202716]
[1733357873531,0.10647747,98662.0,98659.0,0.202716]
[1733357873742,0.11147747,98662.0,98659.0,0.101358]
[1733357873955,0.10847747,98662.0,98659.0,0.101358]
[1733357874192,0.10947747,98662.0,98659.0,0.101358]
[1733357874406,0.10947747,98662.0,98650.0,0.101367]
[1733357874407,0.10947747,98662.0,98660.0,0.101357]
[1733357875094,0.10747747,98662.0,98660.0,0.101357]
[1733357875518,0.10847747,98662.0,98660.0,0.101357]
[1733357875732,0.002,98662.0,98660.0,0.101357]
[1733357875946,0.00176488,98683.0,98666.0,0.101352]
[1733357876161,0.10644399,98667.0,98666.0,0.101352]
[1733357876378,0.10644399,98667.0,98665.0,0.101352]
[1733357876609,0.10647747,98666.0,98665.0,0.101352]